bitfinex/quotes_SOLUSD_20240705
["timestamp","ask_amount","ask_price","bid_price","bid_amount"]
[1720212098246,13.51,134.55,134.51,7.4342]
[1720212098850,20.9417,134.56,134.51,7.4342]
[1720212099140,13.51,134.55,134.51,7.4342]
[1720212099546,13.51,134.55,134.52,7.4338]
[1720212100138,13.51,134.55,134.51,7.4341]
[1720212100444,7.77575793,134.58,134.52,7.4338]
[1720212100626,20.9416,134.56,134.51,7.4341]
[1720212100826,13.51,134.55,134.51,7.4341]
[1720212102950,7.4316,134.56,134.51,7.4341]
[1720212103152,7.4312,134.57,134.52,7.4337]
[1720212103448,13.51,134.55,134.52,7.4337]
[1720212103942,13.51,134.55,134.5,13.51]
[1720212103943,20.9421,134.55,134.5,7.4345]
[1720212104239,13.51,134.54,134.5,7.4345]
[1720212104642,20.9428,134.54,134.49,23.719]
[1720212105420,20.9428,134.54,134.5,7.4349]
[1720212109244,7.4333,134.53,134.48,7.4358]
[1720212109549,20.944,134.52,134.47,7.4365]
[1720212109727,20.944,134.52,134.47,20.9465]
[1720212109928,20.944,134.52,134.47,7.4365]
[1720212110655,20.944,134.52,134.46,28.5578]
[1720212110656,13.51,134.52,134.48,7.436]
[1720212111033,7.4333,134.53,134.48,7.436]
[1720212111330,13.51,134.52,134.48,7.436]
[1720212111556,20.9439,134.52,134.47,7.4364]
[1720212112249,20.9439,134.52,134.47,20.9464]
[1720212112445,7.4334,134.53,134.48,7.4359]
[1720212112648,13.51,134.52,134.48,7.4359]
[1720212120758,21.28499145,134.54,134.46,15.0478]
[1720212121055,13.51,134.54,134.5,7.4348]
[1720212121454,7.4325,134.55,134.5,7.4348]
[1720212121655,33.51,134.54,134.5,7.4348]
[1720212121964,13.51,134.53,134.49,7.4352]
[1720212122262,20.9432,134.53,134.49,7.4352]
[1720212122861,13.51,134.53,134.49,7.4352]
[1720212123254,33.51,134.54,134.5,7.4348]
[1720212123754,20.0,134.54,134.5,7.4348]
[1720212124076,13.51,134.53,134.5,7.4348]
[1720212124766,7.77305311,134.57,134.49,13.51]
[1720212124965,7.77305311,134.57,134.53,13.51]
[1720212125166,13.51,134.58,134.52,13.51]
[1720212125365,20.9411,134.57,134.52,7.4334]
[1720212125876,13.51,134.56,134.52,7.4334]
[1720212126267,13.51,134.56,134.53,7.4332]
[1720212127071,13.51,134.56,134.54,7.4327]
[1720212127375,15.1987045,134.6,134.55,7.4321]
[1720212127574,13.51,134.58,134.55,7.4321]
[1720212128171,13.51,134.58,134.53,13.51]
[1720212128462,13.51,134.58,134.55,7.432]
[1720212128670,15.1989045,134.6,134.54,7.4325]
[1720212128671,13.51,134.57,134.54,7.4325]
[1720212128980,13.51,134.57,134.52,13.51]
[1720212128981,13.51,134.56,134.51,28.7188]
[1720212129173,13.51,134.56,134.53,7.4332]
[1720212129349,13.51,134.56,134.52,7.4336]
[1720212129551,13.51,134.56,134.53,7.4331]
[1720212132682,7.4306,134.58,134.53,7.4331]
[1720212132981,13.51,134.56,134.53,7.4331]
[1720212133356,13.51,134.56,134.51,28.7188]
[1720212133555,0.17,134.59,134.51,7.4343]
[1720212133759,13.51,134.54,134.51,7.4343]
[1720212133974,13.51,134.55,134.52,7.4337]
[1720212134484,13.51,134.55,134.53,7.4332]
[1720212134686,27.6001,134.59,134.54,7.4327]
[1720212134854,20.0,134.59,134.52,13.51]
[1720212135056,7.7692045,134.6,134.54,13.51]
[1720212135281,16.6252,134.61,134.58,7.4303]
[1720212135462,13.51,134.6,134.57,7.4309]
[1720212135861,13.51,134.59,134.57,7.4309]
[1720212136064,16.6252,134.61,134.57,7.4309]
[1720212136282,13.51,134.59,134.57,7.4309]
[1720212136866,16.6252,134.61,134.57,7.4309]
[1720212137066,13.51,134.59,134.57,7.4309]
[1720212137555,26.4650886,134.63,134.58,7.43]
[1720212137792,13.51,134.61,134.58,7.43]
[1720212137962,13.51,134.61,134.56,13.51]
[1720212137963,14.11197298,134.63,134.59,7.4297]
[1720212138162,13.51,134.62,134.59,7.4297]
[1720212138881,13.51,134.62,134.58,7.4303]
[1720212139375,15.20077298,134.63,134.59,7.4299]
[1720212139376,7.77307298,134.63,134.59,7.4299]
[1720212139756,13.51,134.63,134.59,7.4299]
[1720212141460,7.4274,134.64,134.59,7.4299]
[1720212141861,13.51,134.63,134.59,7.4299]
[1720212145377,7.4268,134.65,134.6,7.4293]
[1720212145597,20.9368,134.65,134.6,7.4293]
[1720212145892,13.51,134.65,134.61,7.4288]
[1720212146391,20.9366,134.65,134.6,7.4292]
[1720212147187,7.4266,134.65,134.6,7.4292]
[1720212147403,20.9366,134.65,134.6,20.9392]
[1720212147697,20.9366,134.65,134.6,7.4292]
[1720212148114,13.51,134.64,134.6,7.4292]
[1720212148711,15.19815776,134.66,134.61,7.4288]
[1720212149015,13.51,134.65,134.61,7.4288]
[1720212149386,15.19815776,134.66,134.61,7.4288]
[1720212149583,13.51,134.65,134.61,7.4288]
[1720212151212,20.9366,134.65,134.6,7.4293]
[1720212151806,7.4266,134.65,134.6,7.4293]
[1720212153302,7.4266,134.65,134.61,7.4288]
[1720212154412,13.51,134.65,134.62,7.4281]
[1720212155107,13.51,134.66,134.62,7.4281]
[1720212157493,7.4259,134.67,134.62,7.4281]
[1720212158018,13.51,134.66,134.62,7.4281]
[1720212158911,20.9366,134.65,134.6,7.4292]
[1720212159301,13.51,134.64,134.6,7.4292]
[1720212159710,13.51,134.64,134.61,7.4288]
[1720212161525,13.51,134.65,134.61,7.4288]
[1720212162917,13.51,134.64,134.61,7.4288]
[1720212164301,13.51,134.64,134.62,7.4282]
[1720212164804,13.51,134.65,134.62,7.4282]
[1720212166124,13.51,134.64,134.59,22.5779]
[1720212166421,13.51,134.64,134.61,7.4285]
[1720212166660,13.51,134.63,134.61,7.4285]
[1720212167328,7.4267,134.65,134.54,7.4323]
[1720212167329,7.43,134.59,134.54,7.4323]
[1720212167498,13.51,134.57,134.52,35.944]
[1720212167704,13.51,134.57,134.55,7.4318]
[1720212168717,13.51,134.58,134.55,7.4318]
[1720212175042,7.4294,134.6,134.55,7.4318]
[1720212175242,13.51,134.58,134.55,7.4318]
[1720212177045,13.51,134.57,134.55,7.4318]
[1720212177546,15.19953045,134.6,134.55,7.4318]
[1720212178338,15.19953045,134.6,134.56,7.4316]
[1720212178548,13.51,134.57,134.52,35.944]
[1720212179036,13.51,134.57,134.55,7.4319]
[1720212181956,7.77013045,134.6,134.52,22.434]
[1720212181957,13.51,134.56,134.52,22.434]
[1720212182113,13.51,134.55,134.52,23.5699]
[1720212182316,13.51,134.55,134.52,7.4336]
[1720212182867,13.51,134.55,134.5,13.51]
[1720212184555,13.51,134.53,134.49,22.0523]
[1720212184845,13.51,134.53,134.49,23.2703]
[1720212185144,13.51,134.53,134.5,7.4348]
[1720212186253,7.4317,134.56,134.51,7.4342]
[1720212186422,13.51,134.53,134.51,7.4342]
[1720212186622,13.51,134.54,134.51,7.4342]
[1720212190751,7.4317,134.56,134.51,7.4342]
[1720212191144,13.51,134.54,134.51,7.4342]
[1720212193051,7.7661206,134.57,134.53,7.4328]
[1720212193245,13.51,134.56,134.53,7.4328]
[1720212194450,13.51,134.56,134.52,7.4336]
[1720212194629,13.51,134.55,134.52,7.4336]
[1720212195955,13.51,134.56,134.52,7.4336]
[1720212198758,13.51,134.57,134.54,7.4326]
[1720212198933,13.51,134.58,134.54,7.4326]
[1720212200656,20.9405,134.58,134.54,7.4326]
[1720212200857,13.51,134.57,134.53,7.433]
[1720212203364,7.4305,134.58,134.54,7.4327]
[1720212203572,13.51,134.57,134.54,7.4327]
[1720212204041,13.51,134.57,134.53,7.433]
[1720212205171,7.4305,134.58,134.53,7.433]
[1720212205348,13.51,134.56,134.53,7.433]
[1720212208251,13.51,134.57,134.54,7.4325]
[1720212209878,7.4301,134.59,134.54,7.4325]
[1720212210059,13.51,134.57,134.54,7.4325]
[1720212210271,15.19436218,134.6,134.55,7.432]
[1720212210570,13.51,134.59,134.55,7.432]
[1720212213251,7.76476218,134.6,134.56,7.4311]
[1720212213450,7.4289,134.61,134.56,7.4311]
[1720212213653,13.51,134.61,134.56,13.51]
[1720212213870,13.95843161,134.62,134.56,13.51]
[1720212214082,21.38703161,134.62,134.57,7.4308]
[1720212214286,13.51,134.62,134.58,7.4304]
[1720212221699,13.51,134.62,134.57,13.51]
[1720212229673,13.51,134.61,134.55,13.51]
[1720212230008,13.51,134.6,134.55,13.51]
[1720212231401,13.51,134.61,134.56,13.51]
[1720212231917,13.51,134.61,134.57,7.4307]
[1720212233920,13.51,134.61,134.56,13.51]
[1720212234525,13.51,134.61,134.54,59.9497]
[1720212234727,13.51,134.61,134.56,13.51]
[1720212236322,7.4279,134.63,134.56,13.51]
[1720212236506,13.51,134.61,134.56,13.51]
[1720212238423,13.51,134.6,134.55,13.51]
[1720212241102,13.51,134.61,134.55,13.51]
[1720212242621,13.51,134.6,134.54,59.9497]
[1720212242808,13.51,134.6,134.55,13.51]
[1720212243726,13.51,134.6,134.54,59.9497]
[1720212244321,13.51,134.61,134.55,13.51]
[1720212244909,13.51,134.61,134.56,13.51]
[1720212245111,7.75310539,134.63,134.56,13.51]
[1720212245332,13.51,134.62,134.56,13.51]
[1720212245625,7.75310539,134.63,134.57,13.51]
[1720212245834,13.51,134.62,134.57,13.51]
[1720212249798,13.51,134.61,134.56,13.51]
[1720212253931,7.4274,134.64,134.56,13.51]
[1720212253932,13.51,134.62,134.56,13.51]
[1720212254506,13.51,134.61,134.56,13.51]
[1720212257734,15.63161431,134.65,134.57,13.51]
[1720212257921,13.51,134.63,134.57,13.51]
[1720212258240,13.51,134.63,134.58,13.51]
[1720212258733,20.0,134.64,134.58,13.51]
[1720212258937,13.51,134.63,134.58,13.51]
[1720212259103,13.51,134.63,134.57,13.51]
[1720212261036,13.51,134.62,134.57,13.51]
[1720212261243,13.51,134.62,134.56,13.51]
[1720212263424,21.2653201,134.62,134.56,13.51]
[1720212264254,13.51,134.61,134.56,13.51]
[1720212265525,13.51,134.61,134.54,59.9497]
[1720212265826,13.51,134.61,134.55,13.51]
[1720212269952,13.51,134.61,134.56,13.51]
[1720212273147,23.1347201,134.62,134.54,59.9497]
[1720212273360,13.51,134.59,134.52,51.3479]
[1720212273955,13.51,134.59,134.54,13.51]
[1720212274127,20.0822,134.61,134.55,13.51]
[1720212274558,20.0822,134.61,134.56,13.51]
[1720212275456,20.0822,134.61,134.55,13.51]
[1720212277140,23.1347201,134.62,134.56,13.51]
[1720212277346,36.6447201,134.62,134.56,13.51]
[1720212277538,36.6447201,134.62,134.57,13.51]
[1720212278635,36.6447201,134.62,134.56,13.51]
[1720212279558,44.0730201,134.62,134.56,13.51]
[1720212280058,13.51,134.61,134.56,13.51]
[1720212280636,30.5630201,134.62,134.56,13.51]
[1720212280960,13.51,134.61,134.56,13.51]
[1720212281160,23.1347201,134.62,134.52,51.3479]
[1720212281337,36.6447201,134.62,134.56,13.51]
[1720212283561,36.6447201,134.62,134.53,0.17]
[1720212283758,36.6447201,134.62,134.56,13.51]
[1720212284060,13.51,134.61,134.55,13.51]
[1720212287360,23.1347201,134.62,134.55,13.51]
[1720212287666,13.51,134.61,134.55,13.51]
[1720212288958,13.51,134.61,134.53,0.17]
[1720212289138,31.58955002,134.6,134.52,51.3479]
[1720212289335,13.51,134.59,134.54,13.51]
[1720212289562,13.51,134.59,134.53,13.51]
[1720212290443,13.51,134.59,134.56,7.4313]
[1720212291244,13.51,134.59,134.57,7.4309]
[1720212292176,13.51,134.59,134.54,13.51]
[1720212297569,7.75541538,134.6,134.54,13.51]
[1720212297776,13.51,134.59,134.54,13.51]
[1720212301778,7.75541538,134.6,134.54,13.51]
[1720212301949,13.51,134.59,134.54,13.51]
[1720212302573,7.75541538,134.6,134.54,13.51]
[1720212302879,7.75541538,134.6,134.57,44.7]
[1720212303050,16.6158,134.65,134.59,58.21]
[1720212303252,24.37157921,134.68,134.62,13.51]
[1720212303554,24.37157921,134.68,134.63,13.51]
[1720212303755,30.1258,134.68,134.63,13.51]
[1720212303981,16.6158,134.68,134.63,13.51]
[1720212304549,7.75853465,134.7,134.62,44.7]
[1720212304854,16.6158,134.72,134.66,13.51]
[1720212305071,13.51,134.71,134.66,13.51]
[1720212305271,30.1258,134.72,134.67,13.51]
[1720212305869,30.1258,134.72,134.63,0.17]
[1720212306071,30.1258,134.72,134.63,44.87]
[1720212306072,13.51,134.7,134.63,44.87]
[1720212306271,13.51,134.7,134.65,13.51]
[1720212306683,13.51,134.7,134.63,44.87]
[1720212306887,13.51,134.7,134.65,13.51]
[1720212307405,13.51,134.69,134.64,13.51]
[1720212307701,13.51,134.7,134.65,13.51]
[1720212307901,16.6158,134.72,134.67,13.51]
[1720212308208,30.1258,134.72,134.67,13.51]
[1720212308691,16.6158,134.72,134.67,13.51]
[1720212309203,16.6158,134.72,134.68,13.51]
[1720212310094,16.6158,134.72,134.67,13.51]
[1720212311303,13.51,134.7,134.65,13.51]
[1720212311496,13.51,134.69,134.64,13.51]
[1720212312604,13.51,134.69,134.59,5.96451986]
[1720212312605,13.51,134.66,134.57,15.0804]
[1720212312775,61.465,134.68,134.6,13.51]
[1720212313091,13.51,134.67,134.62,13.51]
[1720212313399,13.51,134.68,134.63,13.51]
[1720212314088,24.039,134.72,134.61,58.18]
[1720212314296,20.0,134.71,134.65,13.51]
[1720212314491,33.51,134.71,134.66,13.51]
[1720212315483,33.51,134.71,134.65,13.51]
[1720212316181,13.51,134.7,134.65,13.51]
[1720212318097,33.51,134.71,134.65,13.51]
[1720212318681,16.6158,134.72,134.65,44.67]
[1720212318876,30.1258,134.72,134.67,13.51]
[1720212319373,16.6158,134.72,134.67,13.51]
[1720212319578,30.1258,134.72,134.67,13.51]
[1720212321786,7.74112482,134.74,134.7,13.51]
[1720212321982,15.9648,134.75,134.7,13.51]
[1720212322203,15.9648,134.75,134.69,44.67]
[1720212322204,29.4748,134.75,134.69,44.67]
[1720212322507,29.4748,134.75,134.69,13.51]
[1720212323125,7.74023239,134.77,134.72,13.51]
[1720212323281,15.5035,134.79,134.74,13.51]
[1720212323589,15.5035,134.79,134.69,44.67]
[1720212323590,13.51,134.77,134.69,44.67]
[1720212323793,13.51,134.77,134.72,13.51]
[1720212324275,15.5035,134.79,134.73,13.51]
[1720212324480,29.0135,134.79,134.73,13.51]
[1720212324893,29.0135,134.79,134.74,13.51]
[1720212325081,15.5035,134.79,134.75,13.51]
[1720212325281,0.2,134.79,134.76,13.51]
[1720212325710,0.2,134.79,134.77,13.51]
[1720212326207,0.2,134.79,134.76,58.18]
[1720212326409,0.2,134.79,134.77,13.51]
[1720212326908,0.2,134.79,134.76,13.51]
[1720212327085,0.2,134.79,134.77,13.51]
[1720212327288,0.2,134.79,134.76,13.51]
[1720212327711,0.2,134.79,134.77,13.51]
[1720212328004,0.2,134.79,134.76,13.51]
[1720212328209,0.2,134.79,134.77,13.51]
[1720212333110,0.2,134.79,134.78,13.51]
[1720212334486,0.2,134.79,134.78,58.35]
[1720212339620,0.2,134.79,134.77,44.67]
[1720212339823,0.2,134.79,134.77,13.51]
[1720212339995,0.2,134.79,134.76,13.51]
[1720212340200,13.71,134.79,134.74,13.51]
[1720212340400,0.2,134.79,134.75,13.51]
[1720212341223,0.2,134.79,134.7,44.67]
[1720212341521,13.51,134.77,134.72,13.51]
[1720212341911,0.2,134.79,134.73,13.51]
[1720212342111,13.71,134.79,134.73,13.51]
[1720212343006,13.71,134.79,134.74,13.51]
[1720212343207,0.2,134.79,134.73,44.67]
[1720212343413,0.2,134.79,134.75,13.51]
[1720212345725,0.2,134.79,134.77,13.51]
[1720212346598,0.2,134.79,134.76,13.51]
[1720212348731,0.2,134.79,134.75,13.51]
[1720212349735,0.2,134.79,134.76,13.51]
[1720212350633,13.71,134.79,134.74,0.17]
[1720212350806,13.71,134.79,134.74,13.68]
[1720212351007,13.71,134.79,134.74,13.51]
[1720212351435,0.2,134.79,134.75,13.51]
[1720212351727,0.2,134.79,134.74,44.67]
[1720212351931,0.2,134.79,134.75,13.51]
[1720212352731,0.2,134.79,134.74,0.17]
[1720212352907,13.71,134.79,134.74,13.68]
[1720212353232,13.71,134.79,134.73,13.51]
[1720212353233,13.51,134.78,134.73,13.51]
[1720212354446,13.51,134.76,134.71,13.51]
[1720212355733,13.51,134.75,134.7,13.51]
[1720212357415,29.3254,134.74,134.69,13.51]
[1720212357733,13.51,134.73,134.68,13.51]
[1720212360316,29.3254,134.74,134.69,13.51]
[1720212363026,13.51,134.73,134.68,13.51]
[1720212363220,29.3254,134.74,134.69,13.51]
[1720212367540,15.8154,134.74,134.68,13.51]
[1720212367744,15.8154,134.74,134.69,13.51]
[1720212368046,29.3254,134.74,134.69,13.51]
[1720212369130,13.51,134.73,134.68,13.51]
[1720212369430,13.51,134.73,134.61,13.51]
[1720212369431,13.51,134.69,134.61,13.51]
[1720212369641,15.1862,134.71,134.61,13.51]
[1720212369642,13.51,134.66,134.61,13.51]
[1720212370727,0.49445268,134.69,134.61,13.51]
[1720212370933,13.51,134.66,134.61,13.51]
[1720212371130,0.49445268,134.69,134.61,13.51]
[1720212371336,13.51,134.66,134.61,13.51]
[1720212372020,15.1862,134.71,134.64,13.51]
[1720212372234,13.51,134.69,134.64,13.51]
[1720212372945,28.6962,134.71,134.65,13.51]
[1720212373447,13.51,134.69,134.64,44.67]
[1720212373639,13.51,134.69,134.64,13.51]
[1720212373835,22.6096,134.71,134.63,0.17]
[1720212374042,15.1862,134.71,134.63,0.17]
[1720212375630,15.1862,134.71,134.6,44.67]
[1720212377142,15.1862,134.71,134.61,0.17]
[1720212377657,15.1862,134.71,134.63,50.8331]
[1720212377847,15.1862,134.71,134.64,0.17]
[1720212378255,7.74640797,134.72,134.64,0.17]
[1720212379624,15.8895,134.75,134.64,0.17]
[1720212381941,7.4217,134.74,134.64,0.17]
[1720212382436,23.3106,134.75,134.64,0.17]
[1720212382842,15.8895,134.75,134.64,0.17]
[1720212387332,23.3107,134.75,134.64,0.17]
[1720212387945,15.8895,134.75,134.64,0.17]
[1720212391248,7.74728001,134.76,134.66,44.67]
[1720212391442,7.74728001,134.76,134.67,0.17]
[1720212393756,13.48,134.75,134.7,13.48]
[1720212394652,7.74728001,134.76,134.72,13.48]
[1720212394963,13.48,134.76,134.71,28.956]
[1720212396262,13.48,134.76,134.71,15.476]
[1720212397049,13.48,134.76,134.71,28.956]
[1720212399242,24.21185,134.78,134.72,13.48]
[1720212399243,13.48,134.77,134.72,13.48]
[1720212400153,13.48,134.78,134.73,13.48]
[1720212401575,21.43382052,134.79,134.74,13.48]
[1720212402864,7.95382052,134.79,134.74,13.48]
[1720212403062,21.43382052,134.79,134.74,13.48]
[1720212404555,13.68,134.79,134.74,13.48]
[1720212405352,0.2,134.79,134.75,13.48]
[1720212406067,0.2,134.79,134.76,13.48]
[1720212407173,0.2,134.79,134.77,13.48]
[1720212407590,0.2,134.79,134.76,13.48]
[1720212407878,0.2,134.79,134.77,13.48]
[1720212408176,0.2,134.79,134.76,13.48]
[1720212409286,0.2,134.79,134.77,13.48]
[1720212410267,0.2,134.79,134.78,13.48]
[1720212412082,0.2,134.79,134.75,73.6789]
[1720212412382,13.68,134.79,134.75,60.1989]
[1720212413270,0.2,134.79,134.75,73.6789]
[1720212417393,13.18,134.8,134.75,73.6789]
[1720212419196,13.48,134.81,134.76,13.48]
[1720212420092,27.29005435,134.85,134.76,58.15]
[1720212420282,13.48,134.82,134.77,13.65]
[1720212421096,24.314985,134.85,134.78,13.48]
[1720212421290,13.48,134.83,134.78,13.48]
[1720212422984,24.314985,134.85,134.79,13.48]
[1720212423185,13.48,134.84,134.79,13.48]
[1720212423591,0.8788443,134.85,134.8,13.48]
[1720212423797,14.3588443,134.85,134.8,13.48]
[1720212425212,113.48,134.93,134.8,13.48]
[1720212425213,3.84837273,134.96,134.86,21.1684]
[1720212425372,1.0788443,134.99,134.9,44.67]
[1720212425674,1.0788443,134.99,134.96,13.48]
[1720212425879,1.0788443,134.99,134.92,44.67]
[1720212426079,13.48,134.98,134.93,13.48]
[1720212426290,14.5588443,134.99,134.94,13.48]
[1720212426612,1.0788443,134.99,134.94,13.48]
[1720212426788,14.5588443,134.99,134.94,13.48]
[1720212426984,1.0788443,134.99,134.94,13.48]
[1720212427181,1.0788443,134.99,134.91,0.17]
[1720212427600,1.0788443,134.99,134.95,13.48]
[1720212427785,1.0788443,134.99,134.91,44.84]
[1720212429493,1.0788443,134.99,134.94,44.67]
[1720212429690,1.0788443,134.99,134.95,0.17]
[1720212430076,1.0788443,134.99,134.93,26.87]
[1720212430381,1.0788443,134.99,134.92,44.84]
[1720212430582,1.0788443,134.99,134.93,0.17]
[1720212435009,1.0788443,134.99,134.95,44.67]
[1720212435214,1.0788443,134.99,134.96,0.17]
[1720212436504,1.0788443,134.99,134.97,26.87]
[1720212436714,1.0788443,134.99,134.98,0.17]
[1720212440416,0.81205801,134.99,134.98,0.17]
[1720212442524,42.3058185,135.0,134.98,0.17]
[1720212444584,14.39520884,135.0,134.99,77.5909]
[1720212444783,14.39520884,135.0,134.99,77.7609]
[1720212444784,2.58480665,135.0,134.99,77.7609]
[1720212445017,2.56140325,135.0,134.99,77.7609]
[1720212445224,2.14424839,135.0,134.99,77.7609]
[1720212445717,0.1,135.09,134.99,77.7609]
[1720212446020,0.1,135.09,135.02,71.54]
[1720212446185,0.1,135.09,134.99,50.7209]
[1720212446381,0.1,135.09,134.99,77.5909]
[1720212446586,29.733,135.08,134.99,71.54]
[1720212446825,29.733,135.08,134.99,44.67]
[1720212447116,22.33,135.08,134.98,44.67]
[1720212447917,22.33,135.08,134.99,0.17]
[1720212448087,29.8326,135.09,134.99,0.17]
[1720212449000,28.8326,135.09,134.99,0.17]
[1720212449328,29.902,135.1,134.99,0.17]
[1720212450429,29.7325,135.09,134.99,0.17]
[1720212450629,53.56104295,135.11,135.0,26.87]
[1720212450798,53.56104295,135.11,135.01,44.84]
[1720212451496,23.82954295,135.11,135.01,44.84]
[1720212451703,16.0833,135.11,135.01,44.84]
[1720212451910,16.0833,135.11,135.03,71.54]
[1720212452113,16.0833,135.11,135.04,0.17]
[1720212453938,0.8788443,135.12,135.04,0.17]
[1720212454146,0.8788443,135.12,135.06,71.54]
[1720212454302,0.8788443,135.12,135.07,0.17]
[1720212456063,0.8788443,135.12,135.07,20.17]
[1720212456237,0.8788443,135.12,135.07,64.84]
[1720212456846,0.8788443,135.12,135.09,44.67]
[1720212457042,0.8788443,135.12,135.1,20.0]
[1720212457926,0.8788443,135.12,135.06,71.54]
[1720212458134,0.8788443,135.12,135.06,44.67]
[1720212458345,0.8788443,135.12,134.98,107.442]
[1720212458346,0.8788443,135.12,135.01,6.5714]
[1720212458553,0.8788443,135.12,135.03,26.87]
[1720212458965,0.8788443,135.12,135.04,44.67]
[1720212459633,0.8788443,135.12,135.05,0.17]
[1720212460827,0.8788443,135.12,135.04,44.67]
[1720212461460,0.8788443,135.12,135.05,0.17]
[1720212464040,30.6100443,135.12,135.02,44.67]
[1720212464260,23.2088443,135.12,135.02,44.67]
[1720212464636,0.8788443,135.12,135.02,44.67]
[1720212465154,0.8788443,135.12,135.03,71.54]
[1720212465353,0.8788443,135.12,135.04,0.17]
[1720212466679,0.8788443,135.12,135.03,71.54]
[1720212466845,22.33,135.11,135.03,71.54]
[1720212467188,15.8052,135.1,135.02,44.67]
[1720212468048,15.8052,135.1,135.01,44.67]
[1720212468243,15.8052,135.1,135.02,0.17]
[1720212473861,15.8052,135.1,135.06,13.41]
[1720212474166,15.8052,135.1,135.07,13.41]
[1720212475559,0.8788443,135.12,135.07,44.67]
[1720212475766,0.8788443,135.12,135.11,13.41]
[1720212476789,0.8788443,135.12,135.11,58.25]
[1720212477864,0.8788443,135.12,135.11,71.62]
[1720212478794,0.1,135.19,135.13,44.67]
[1720212479006,0.1,135.19,135.14,0.17]
[1720212480104,0.1,135.19,135.1,71.45]
[1720212480390,52.6075,135.18,135.07,26.78]
[1720212480602,45.2096,135.18,135.07,26.78]
[1720212480771,22.8796,135.18,135.07,126.78]
[1720212480971,22.8796,135.18,135.1,26.78]
[1720212481174,22.8796,135.18,135.11,44.67]
[1720212481481,16.6055,135.18,135.11,44.67]
[1720212481890,16.6055,135.18,135.12,0.17]
[1720212483607,16.6055,135.18,135.06,16.2884]
[1720212483608,38.9355,135.18,135.07,44.67]
[1720212483907,6.2714,135.17,135.07,44.67]
[1720212486301,6.2714,135.17,135.08,0.17]
[1720212492608,7.3993,135.15,135.04,44.67]
[1720212492798,29.7293,135.15,135.04,44.67]
[1720212493399,22.1675,135.14,135.04,44.67]
[1720212493600,22.1675,135.14,135.01,71.45]
[1720212493601,29.7303,135.13,135.01,71.45]
[1720212493991,22.33,135.13,135.01,71.45]
[1720212494811,22.33,135.13,135.02,0.17]
[1720212497092,15.9681,135.12,135.02,44.84]
[1720212498308,15.9681,135.12,135.02,0.17]